bitfinex-derivatives/quotes_ETHF0:USTF0_20250824
["timestamp","ask_amount","ask_price","bid_price","bid_amount"]
[1756074955840,0.33,4751.2,4750.6,20.523]
[1756074956045,0.33,4751.2,4750.6,20.94406]
[1756074956649,0.33,4751.2,4750.6,20.523]
[1756074957046,0.33,4751.0,4750.5,3.2078]
[1756074957350,3.2078,4751.6,4750.5,3.2078]
[1756074957351,1.0219,4750.9,4750.5,3.2078]
[1756074957645,3.2078,4751.6,4750.3,20.517]
[1756074957646,0.6961,4750.6,4750.3,20.517]
[1756074957845,0.6961,4750.6,4749.8,3.2078]
[1756074957846,3.2078,4750.9,4750.2,20.515]
[1756074958047,0.3345,4750.6,4750.2,20.515]
[1756074958246,3.2078,4750.9,4750.2,20.515]
[1756074958247,0.3616,4750.3,4750.2,20.515]
[1756074958442,0.6992,4750.3,4750.2,20.515]
[1756074958648,1.0337,4750.3,4750.2,20.515]
[1756074958854,3.2078,4750.9,4750.1,20.513]
[1756074959247,0.3376,4750.4,4750.1,20.513]
[1756074959445,0.3376,4750.3,4750.1,20.513]
[1756074959851,3.2078,4750.9,4750.1,20.513]
[1756074960153,0.3376,4750.8,4750.1,20.513]
[1756074960654,0.3376,4750.8,4749.8,3.62892]
[1756074960859,0.3376,4750.8,4750.0,0.42111]
[1756074961055,0.3376,4750.8,4750.4,0.42107]
[1756074961353,0.3376,4751.1,4750.5,20.508]
[1756074961756,0.3616,4750.7,4749.8,3.2078]
[1756074961958,0.3616,4750.5,4749.9,20.506]
[1756074962155,0.6992,4750.5,4749.9,20.506]
[1756074962352,0.3376,4750.4,4749.9,20.506]
[1756074962552,3.2078,4750.9,4749.8,3.2078]
[1756074962858,40.8,4752.1,4749.6,20.503]
[1756074962859,1.0337,4749.7,4749.6,20.503]
[1756074963050,3.2078,4750.2,4749.2,20.502]
[1756074963250,0.6992,4749.9,4749.2,20.502]
[1756074963449,0.3376,4749.8,4749.2,20.502]
[1756074963954,0.6961,4749.3,4749.2,20.502]
[1756074964162,0.6992,4749.3,4749.2,20.502]
[1756074964457,0.3376,4749.3,4749.2,20.502]
[1756074964758,0.3376,4749.2,4749.1,3.2078]
[1756074964953,0.3376,4749.2,4749.1,23.7068]
[1756074965151,0.6992,4749.7,4749.1,23.7068]
[1756074965351,0.6992,4750.8,4749.9,0.42111]
[1756074965551,0.6992,4750.8,4750.0,20.496]
[1756074965852,3.2078,4750.7,4749.7,3.2078]
[1756074966057,0.3376,4750.6,4749.8,20.91613]
[1756074966254,0.3376,4750.5,4750.1,0.4211]
[1756074966455,0.3376,4750.5,4749.8,20.495]
[1756074966851,0.3376,4750.5,4749.9,0.42112]
[1756074967054,0.6992,4750.4,4750.0,20.494]
[1756074967355,0.3616,4750.2,4749.8,0.42113]
[1756074967555,0.3376,4750.1,4749.9,20.493]
[1756074968058,4.2415,4750.1,4749.0,30.7422]
[1756074968359,0.3376,4750.0,4749.0,30.321]
[1756074968559,0.3616,4749.9,4749.0,30.321]
[1756074968752,0.3376,4749.8,4749.0,30.7422]
[1756074968953,0.3376,4749.8,4749.1,20.489]
[1756074969263,0.6961,4749.4,4748.8,3.2078]
[1756074969552,1.0337,4749.2,4748.9,20.489]
[1756074969749,0.3376,4749.0,4748.9,20.489]
[1756074970350,0.6992,4749.0,4748.9,20.489]
[1756074970763,0.3376,4749.0,4748.9,20.489]
[1756074971560,1.0337,4749.0,4748.9,20.489]
[1756074971757,1.0337,4749.4,4748.8,3.2078]
[1756074971955,1.0337,4749.3,4748.8,3.2078]
[1756074972157,1.0337,4749.1,4748.8,3.2078]
[1756074972354,1.0337,4748.9,4748.8,3.2078]
[1756074972560,3.2078,4749.0,4748.4,20.483]
[1756074972756,0.6961,4748.8,4748.4,20.483]
[1756074973056,0.3376,4748.5,4748.1,3.2078]
[1756074973260,0.3376,4748.5,4748.4,20.483]
[1756074973959,0.6992,4748.5,4748.4,20.483]
[1756074974361,0.6992,4748.5,4748.1,3.2078]
[1756074974661,0.3376,4748.3,4748.2,20.478]
[1756074975958,0.6961,4748.9,4748.2,20.478]
[1756074976155,20.489,4751.4,4748.6,0.42123]
[1756074976156,0.3376,4749.3,4748.6,0.42123]
[1756074976354,0.3376,4749.3,4748.7,20.476]
[1756074979067,0.6992,4749.1,4748.1,3.2078]
[1756074979261,3.2078,4749.1,4748.2,20.47]
[1756074979463,1.0337,4749.0,4748.2,20.47]
[1756074979659,0.3376,4748.9,4748.4,0.42125]
[1756074979859,0.3376,4749.5,4748.8,3.2078]
[1756074980063,0.3376,4749.5,4749.0,0.4212]
[1756074980458,0.3376,4749.5,4748.9,20.468]
[1756074980654,0.3376,4749.9,4749.2,0.42118]
[1756074980958,0.3376,4749.9,4749.4,0.42116]
[1756074981158,0.3376,4750.4,4749.5,23.6728]
[1756074981355,0.3376,4750.8,4749.9,0.42112]
[1756074981556,0.3376,4750.8,4750.0,20.465]
[1756074982159,0.6721,4750.6,4749.5,3.2078]
[1756074982361,1.0337,4750.7,4749.6,20.463]
[1756074982562,1.0337,4750.5,4749.6,20.463]
[1756074982964,0.3376,4750.4,4749.6,20.463]
[1756074983967,0.3376,4750.4,4749.7,20.46]
[1756074984471,0.3376,4750.4,4749.7,20.88114]
[1756074985170,0.3376,4750.4,4749.8,0.42113]
[1756074985467,0.3376,4750.4,4749.7,20.46]
[1756074985468,0.3376,4750.5,4750.1,0.4211]
[1756074985769,0.3376,4750.5,4750.2,20.456]
[1756074985968,0.3376,4750.9,4750.2,20.87709]
[1756074986168,0.3376,4751.2,4750.6,3.2078]
[1756074986368,0.6992,4751.1,4750.7,20.452]
[1756074986564,0.3376,4750.9,4750.7,20.452]
[1756074986759,0.16966625,4751.9,4750.5,20.451]
[1756074986760,3.2078,4750.8,4750.5,20.451]
[1756074986964,1.0337,4750.6,4750.4,20.451]
[1756074987163,1.0337,4750.5,4749.7,3.2078]
[1756074987365,0.3376,4750.4,4749.8,20.449]
[1756074988669,0.3376,4750.4,4749.9,20.448]
[1756074988865,0.6846,4750.2,4749.9,20.448]
[1756074989065,0.3311,4750.0,4749.7,3.2078]
[1756074989266,0.3216,4750.2,4749.8,20.445]
[1756074989465,0.3311,4749.9,4749.8,20.445]
[1756074990364,0.3311,4749.9,4749.7,3.2078]
[1756074990669,0.3311,4749.9,4749.8,20.443]
[1756074991559,1.7066,4749.8,4749.7,23.6458]
[1756074992063,1.7066,4749.8,4749.1,30.33]
[1756074992064,0.7004,4749.7,4749.4,20.437]
[1756074992265,0.3311,4750.1,4749.4,20.437]
[1756074992971,0.7874,4750.1,4749.4,20.437]
[1756074993266,0.5848,4749.8,4749.5,20.433]
[1756074993469,0.3311,4750.2,4749.5,20.433]
[1756074993768,1.109,4750.2,4749.5,20.433]
[1756074993964,0.8065,4750.0,4749.5,20.433]
[1756074994166,0.7004,4750.0,4749.5,20.433]
[1756074994372,0.3535,4749.9,4749.5,20.433]
[1756074994566,0.3311,4749.7,4749.5,20.433]
[1756074994868,0.3311,4750.1,4749.5,20.433]
[1756074995370,0.5624,4750.1,4749.5,20.433]
[1756074995574,0.6846,4750.0,4749.5,20.433]
[1756074995875,0.3311,4749.8,4749.5,20.433]
[1756074996071,0.225,4749.2,4749.1,33.5378]
[1756074996271,1.385,4749.2,4749.1,30.33]
[1756074996475,1.7066,4748.5,4747.9,3.2078]
[1756074996776,0.6846,4748.3,4748.1,20.426]
[1756074996969,0.3311,4748.2,4748.1,20.426]
[1756074998470,0.3311,4748.2,4747.4,3.2078]
[1756074998672,0.3311,4748.0,4747.5,20.421]
[1756074998972,0.3216,4747.8,4747.4,3.2078]
[1756074999176,0.3311,4747.6,4747.5,20.423]
[1756074999371,0.3216,4747.5,4746.7,3.2078]
[1756074999576,0.3216,4747.5,4746.8,20.422]
[1756074999777,3.2078,4748.2,4746.8,20.422]
[1756075000076,0.6846,4748.0,4746.8,20.422]
[1756075000273,0.3311,4747.9,4746.8,20.422]
[1756075000477,0.3311,4747.7,4746.8,20.422]
[1756075001767,0.3311,4747.7,4746.9,20.418]
[1756075002167,0.3311,4748.1,4747.2,3.2078]
[1756075002379,0.3311,4748.5,4747.7,3.2078]
[1756075002573,0.3311,4748.5,4747.8,20.418]
[1756075004076,0.3311,4748.5,4747.9,20.415]
[1756075004571,3.5389,4748.8,4747.9,20.415]
[1756075004767,0.3311,4748.8,4747.9,20.415]
[1756075005367,3.2078,4749.7,4747.9,20.415]
[1756075005368,0.6846,4749.6,4748.3,3.2078]
[1756075005578,0.6846,4749.6,4748.4,20.412]
[1756075005779,0.3311,4749.5,4748.4,20.412]
[1756075007177,0.3311,4749.5,4748.4,20.83323]
[1756075007370,0.3311,4750.0,4749.1,3.2078]
[1756075007574,0.3311,4750.0,4749.2,20.408]
[1756075007973,0.3535,4750.5,4749.6,3.2078]
[1756075008178,0.3311,4750.4,4749.2,20.408]
[1756075008681,0.3311,4750.4,4749.6,3.2078]
[1756075010280,0.3311,4750.8,4750.3,3.2078]
[1756075010480,0.3311,4751.2,4750.4,20.401]
[1756075011275,3.2078,4751.6,4750.4,20.397]
[1756075011578,3.2078,4751.4,4750.4,20.397]
[1756075011771,0.3311,4750.5,4750.4,20.397]
[1756075012876,0.3311,4751.1,4750.4,20.397]
[1756075013682,0.3535,4751.0,4750.5,20.392]
[1756075013983,0.3311,4751.3,4750.5,20.392]
[1756075014377,0.6846,4751.8,4750.5,20.392]
[1756075014576,0.3535,4751.8,4750.9,3.2078]
[1756075014775,0.3311,4751.7,4750.9,3.2078]
[1756075014982,0.6751,4751.6,4750.9,3.2078]
[1756075015183,1.0062,4751.3,4750.7,20.387]
[1756075015378,0.3216,4751.1,4750.7,20.387]
[1756075015578,0.3311,4751.0,4750.7,20.387]
[1756075015780,1.0062,4751.1,4750.5,20.386]
[1756075015980,0.6846,4750.9,4750.5,20.386]
[1756075016182,0.6846,4750.8,4750.5,20.386]
[1756075016378,0.3535,4750.8,4750.5,20.386]
[1756075016578,0.3311,4750.6,4750.5,20.386]
[1756075016779,0.3311,4751.0,4750.5,20.386]
[1756075017183,0.3311,4751.1,4750.5,20.386]
[1756075018480,3.2078,4751.2,4750.5,20.386]
[1756075018875,0.3154,4751.6,4750.5,20.386]
[1756075019075,0.3154,4751.6,4750.7,3.2078]
[1756075021584,0.3154,4751.5,4751.2,3.2078]
[1756075021783,0.3154,4751.5,4751.3,20.37]
[1756075021987,0.3154,4751.9,4751.3,20.37]
[1756075024190,3.5232,4752.3,4751.3,20.37]
[1756075024390,3.7465,4752.3,4751.3,20.37]
[1756075025188,0.339,4752.1,4751.3,20.37]
[1756075025383,3.2078,4752.3,4751.4,20.361]
[1756075025589,1.1106,4751.3,4751.2,3.2078]
[1756075025790,1.1106,4751.3,4751.2,23.5668]
[1756075025989,0.3154,4751.3,4751.2,23.5668]
[1756075026188,0.3154,4751.9,4751.2,23.5668]
[1756075026993,0.3154,4751.9,4751.7,3.2078]
[1756075027194,0.3154,4751.9,4751.8,20.354]
[1756075027492,0.6544,4751.9,4751.7,3.2078]
[1756075027692,0.3154,4751.8,4751.7,3.2078]
[1756075027894,0.3154,4751.8,4751.7,23.5598]
[1756075028091,0.3154,4752.2,4751.7,23.5598]
[1756075028292,0.339,4752.3,4751.7,23.5598]
[1756075028493,0.2233,4752.3,4751.7,23.5598]
[1756075028693,0.3154,4752.0,4751.7,23.5598]
[1756075028892,3.2078,4752.8,4751.7,23.5598]
[1756075029397,0.3154,4753.2,4752.3,3.2078]
[1756075029601,0.3154,4753.2,4752.4,20.348]
[1756075030191,0.3154,4752.9,4752.3,3.2078]
[1756075030395,0.3535,4753.0,4752.3,3.2078]
[1756075030591,0.3535,4753.2,4752.3,3.2078]
[1756075030794,3.2078,4753.3,4752.3,3.2078]
[1756075030795,0.3154,4752.9,4752.3,3.2078]
[1756075031197,3.5232,4753.3,4752.3,3.2078]
[1756075032804,0.00588803,4752.8,4752.3,0.42088]
[1756075032998,0.00588803,4752.8,4752.7,3.2078]
[1756075033199,0.00588803,4752.8,4752.7,3.62865]
[1756075033401,0.3154,4754.3,4752.9,0.42082]
[1756075033704,0.3154,4754.3,4752.1,20.345]
[1756075033705,0.339,4754.0,4753.0,3.2078]
[1756075033898,0.6544,4754.0,4753.0,23.5438]
[1756075034097,0.6544,4753.9,4753.0,23.5438]
[1756075034498,0.3154,4753.8,4753.0,23.5438]
[1756075035506,0.3154,4753.8,4753.0,3.2078]
[1756075035906,1.0079,4753.7,4753.1,20.329]
[1756075036107,0.6544,4753.7,4753.1,20.329]
[1756075036314,0.3154,4753.6,4753.5,3.2078]
[1756075036512,0.339,4753.7,4753.1,20.329]
[1756075037013,0.6544,4753.8,4753.2,20.328]
[1756075037209,0.6689,4754.5,4753.7,3.2078]
[1756075037408,3.2078,4755.1,4753.7,3.2078]
[1756075037610,0.6544,4755.0,4753.7,3.2078]
[1756075037815,0.3535,4754.9,4753.7,3.2078]
[1756075038114,0.6544,4754.8,4753.7,23.5328]
[1756075038316,3.8622,4754.6,4753.7,20.325]
[1756075038615,0.6544,4754.5,4753.7,20.325]
[1756075038813,0.3154,4754.6,4753.7,20.325]
[1756075039211,0.3154,4754.6,4753.8,20.321]
[1756075039212,0.6925,4754.5,4753.8,20.321]
[1756075039416,0.3154,4754.4,4753.6,3.2078]
[1756075039711,0.339,4754.3,4753.7,20.321]
[1756075039914,0.3535,4754.5,4753.7,20.321]
[1756075040112,0.3154,4754.0,4753.7,20.321]
[1756075040416,0.3154,4754.4,4753.7,20.321]
[1756075041416,0.339,4754.3,4753.7,20.321]
[1756075041615,40.8,4755.5,4753.7,20.321]
[1756075041616,1.0079,4755.0,4753.7,20.321]
[1756075041912,3.2078,4755.1,4753.6,3.2078]
[1756075042217,0.339,4754.5,4753.6,3.2078]
[1756075042411,0.3154,4754.4,4753.7,20.313]
[1756075042613,0.3154,4754.5,4754.1,3.2078]
[1756075042811,0.3154,4755.0,4754.1,3.2078]
[1756075043208,0.6689,4754.8,4753.7,20.313]
[1756075043514,0.6544,4753.9,4753.7,20.313]
[1756075043710,0.3154,4753.8,4753.7,20.313]
[1756075044013,0.3154,4754.1,4753.7,20.313]
[1756075045109,3.2078,4754.2,4753.2,33.5118]
[1756075045313,3.2078,4755.0,4753.7,3.2078]
[1756075045617,0.3154,4754.9,4753.8,23.5138]
[1756075045818,0.3154,4754.9,4753.9,20.305]
[1756075046013,0.3154,4754.9,4753.8,3.2078]
[1756075046214,1.0079,4754.4,4753.9,20.305]
[1756075046419,1.0079,4754.3,4753.9,20.305]
[1756075046714,0.6544,4754.2,4753.9,20.305]
[1756075047018,0.3154,4754.0,4753.9,20.305]
[1756075047916,0.3154,4754.0,4753.3,3.2078]
[1756075048115,0.313,4754.4,4753.4,20.302]
[1756075048415,0.313,4755.4,4754.3,3.2078]
[1756075048621,0.313,4755.4,4754.7,3.2078]
[1756075048916,0.313,4755.4,4754.8,20.299]
[1756075051419,0.5326,4755.4,4754.8,20.299]
[1756075051617,0.4406,4755.4,4754.8,20.299]
[1756075051818,0.313,4755.2,4754.8,20.299]
[1756075052017,0.6378,4755.7,4754.8,20.299]
[1756075052217,0.3248,4755.4,4754.8,20.299]
[1756075052417,0.313,4755.3,4754.8,20.299]
[1756075052617,0.5444,4755.1,4754.8,20.299]
[1756075052922,0.313,4754.9,4754.7,3.2078]
[1756075053219,0.6585,4754.8,4754.2,3.2078]
[1756075053521,0.3248,4754.4,4754.3,20.29]
[1756075053716,0.6378,4754.3,4754.2,3.2078]
[1756075053916,1.6294,4754.3,4754.2,20.29]
[1756075054718,1.3164,4754.3,4753.7,3.2078]
[1756075054920,0.8574,4753.9,4753.8,20.288]
[1756075055123,1.6294,4753.8,4753.7,3.2078]
[1756075055324,1.6294,4753.6,4753.5,20.286]
[1756075055618,0.9715,4753.6,4753.5,20.286]
[1756075055818,0.57981489,4753.6,4752.0,3.2078]
[1756075056018,0.313,4752.7,4752.1,20.285]
[1756075056219,0.313,4752.3,4752.2,20.284]
[1756075056422,0.6378,4752.3,4752.2,20.284]
[1756075056716,0.6378,4752.3,4751.5,3.2078]
[1756075056717,0.3337,4752.2,4751.5,3.2078]
[1756075057023,0.9715,4752.0,4751.5,3.2078]
[1756075057216,0.57979518,4751.9,4751.5,3.2078]
[1756075057520,0.9715,4751.6,4751.5,3.2078]
[1756075057716,0.9715,4751.6,4751.1,20.283]
[1756075057717,0.6378,4751.5,4751.1,20.281]
[1756075058024,0.6378,4751.5,4750.7,20.281]
[1756075058025,0.9715,4751.4,4750.7,20.281]
[1756075058219,0.9715,4750.8,4750.7,20.281]
[1756075058522,0.313,4750.7,4750.5,20.28]
[1756075058722,0.313,4750.5,4749.9,30.294]
[1756075058923,0.313,4750.5,4750.2,20.28]
[1756075059117,0.9715,4750.8,4750.2,20.28]
[1756075059319,0.6585,4750.8,4750.2,20.28]
[1756075059520,0.313,4750.7,4750.2,20.28]
[1756075059720,3.2078,4750.9,4750.2,20.28]
[1756075060023,0.3248,4750.4,4750.2,20.28]
[1756075060318,0.313,4750.3,4750.2,20.28]
[1756075060623,0.313,4751.0,4750.2,20.28]
[1756075060813,0.6585,4751.3,4750.6,3.2078]
[1756075061018,0.313,4751.5,4750.6,3.2078]
[1756075061218,0.313,4751.5,4750.7,0.42102]
[1756075061415,0.313,4751.9,4750.8,20.279]
[1756075061722,0.6378,4750.8,4750.1,3.2078]
[1756075062021,0.9715,4750.6,4749.6,3.2078]
[1756075062222,0.6378,4750.4,4749.7,20.282]
[1756075062526,0.313,4750.4,4749.7,20.282]
[1756075064124,0.313,4750.4,4749.6,3.2078]
[1756075064321,0.313,4750.4,4749.7,20.281]
[1756075064522,3.2078,4750.8,4749.7,20.281]
[1756075064725,0.313,4751.1,4750.7,3.2078]
[1756075065024,0.3248,4751.5,4750.8,20.278]
[1756075065318,0.313,4751.8,4750.9,20.28]
[1756075065723,0.3248,4751.7,4750.9,20.28]
[1756075065922,0.313,4751.6,4750.9,20.28]
[1756075066221,0.313,4752.8,4751.5,3.2078]
[1756075066425,0.6378,4752.8,4751.6,20.278]
[1756075066625,0.313,4752.7,4751.6,20.278]
[1756075066926,0.313,4752.5,4751.6,20.278]
[1756075067325,0.3248,4752.5,4751.6,20.278]
[1756075067625,0.313,4752.4,4751.5,3.2078]
[1756075067818,0.313,4752.4,4751.7,20.277]
[1756075068019,3.5208,4752.9,4751.7,20.69794]
[1756075068319,0.313,4752.9,4752.2,3.2078]
[1756075068518,3.2078,4753.7,4752.2,3.2078]
[1756075068722,0.313,4753.6,4752.7,3.2078]
[1756075068920,0.313,4753.6,4752.8,20.276]
[1756075069124,0.313,4754.2,4753.3,3.2078]
[1756075069427,0.313,4754.2,4752.9,0.42083]
[1756075069823,3.2078,4753.8,4752.8,20.276]
[1756075070024,0.313,4753.7,4752.8,20.276]
[1756075072419,0.313,4754.3,4753.2,3.2078]
[1756075072828,0.313,4754.3,4753.7,3.2078]
[1756075073024,3.2078,4754.0,4753.7,20.27]
[1756075073230,0.9715,4754.5,4753.7,20.27]
[1756075073427,0.3337,4754.5,4753.7,20.27]
[1756075073732,0.313,4754.3,4753.7,20.27]
[1756075074132,0.9715,4754.0,4752.8,3.2078]
[1756075074332,0.313,4753.9,4752.9,20.267]
[1756075074529,0.313,4753.9,4752.8,3.2078]
[1756075074728,0.313,4753.9,4752.9,0.42083]
[1756075074930,0.313,4753.9,4753.0,20.267]
[1756075075226,0.313,4753.9,4752.8,3.62864]
[1756075075430,0.313,4753.9,4752.9,20.266]
[1756075075628,0.313,4753.9,4753.3,3.2078]
[1756075075826,0.3337,4753.8,4753.2,20.266]
[1756075076025,40.8,4755.5,4753.2,20.266]
[1756075076026,0.3337,4753.6,4753.2,20.266]
[1756075076230,0.313,4753.5,4753.4,3.2078]
[1756075076433,0.313,4753.4,4753.2,20.266]
[1756075076635,0.6467,4753.7,4752.8,23.4728]
[1756075076823,0.6378,4753.6,4752.8,23.4728]
[1756075077230,0.313,4753.8,4752.8,23.89364]
[1756075077432,0.313,4753.8,4753.1,0.42082]
[1756075077732,0.313,4753.8,4753.7,3.209]
[1756075077933,0.3273,4754.3,4753.7,23.4708]
[1756075078130,0.3273,4754.2,4753.8,0.0012]
[1756075078326,0.3273,4754.1,4753.8,0.0012]
[1756075078532,0.3273,4754.6,4753.8,0.0012]
[1756075078837,0.3273,4754.4,4754.2,3.2078]
[1756075079430,0.3273,4754.4,4754.3,0.0012]
[1756075080034,0.3273,4755.0,4754.3,0.0012]
[1756075080232,0.3416,4755.6,4754.8,3.2078]
[1756075080532,0.3273,4755.4,4755.1,0.0012]
[1756075080734,0.326,4755.2,4754.8,3.2078]
[1756075081031,0.3273,4755.1,4755.0,0.0012]
[1756075081227,0.6533,4755.1,4755.0,0.0012]
[1756075082038,0.3416,4754.9,4754.6,20.259]
[1756075082339,0.9949,4754.8,4754.7,0.0012]
[1756075082540,0.3273,4754.8,4754.7,0.0012]
[1756075083033,0.6533,4755.3,4754.7,0.0012]
[1756075083235,0.6533,4755.3,4754.6,20.67968]
[1756075083236,0.326,4755.8,4754.9,0.0012]
[1756075083434,0.6533,4755.8,4755.1,0.42064]
[1756075083637,0.6533,4755.8,4755.2,0.0012]
[1756075083841,0.3273,4755.6,4755.4,0.0012]
[1756075084138,0.3273,4756.6,4755.9,0.0012]
[1756075084336,0.3273,4756.5,4756.2,0.0012]
[1756075084534,0.6533,4756.4,4756.3,0.0012]
[1756075084839,0.3416,4756.4,4756.2,20.254]
[1756075085035,0.9949,4756.2,4756.1,3.2078]
[1756075085237,3.2078,4756.2,4755.3,0.0012]
[1756075085429,0.3416,4756.0,4755.4,20.254]
[1756075085634,0.3273,4755.9,4755.4,20.254]
[1756075085839,3.2078,4756.2,4755.4,20.254]
[1756075085840,3.2078,4756.2,4755.5,0.0012]
[1756075086033,0.9949,4755.6,4755.4,20.253]
[1756075086342,0.9949,4755.5,4755.4,20.253]
[1756075086730,0.9949,4755.5,4755.4,20.2542]
[1756075087129,0.6533,4755.5,4755.4,20.2542]
[1756075087330,0.9949,4755.5,4755.4,20.2542]
[1756075087640,0.3273,4756.1,4755.5,0.0012]
[1756075088045,0.3273,4756.5,4756.0,0.0012]
[1756075088341,0.326,4756.8,4756.2,0.0012]
[1756075088535,0.3273,4756.7,4756.1,20.248]
[1756075088738,0.6533,4756.5,4756.4,0.0012]
[1756075088934,0.3273,4756.5,4756.4,0.0012]
[1756075089541,0.6533,4756.5,4756.4,0.0012]
[1756075089739,0.6533,4756.5,4756.4,20.2482]
[1756075090138,0.9949,4756.5,4756.4,20.247]
[1756075090446,0.3273,4756.5,4756.4,20.2482]
[1756075092245,0.3273,4757.3,4756.5,0.0012]
[1756075092545,0.9949,4756.8,4756.6,20.242]
[1756075092743,0.3273,4756.9,4756.0,0.0012]
[1756075093045,0.3273,4756.9,4756.2,0.0012]
[1756075094143,0.3273,4756.9,4756.4,0.0012]
[1756075094444,3.2078,4757.1,4756.3,20.241]
[1756075094644,0.326,4756.6,4756.3,20.241]
[1756075094846,0.3273,4756.5,4756.3,20.241]
[1756075095040,0.3273,4756.5,4756.3,23.4488]
[1756075095343,0.3273,4756.4,4756.3,27.45]
[1756075095544,0.3273,4756.4,4756.3,3.209]
[1756075095745,0.3273,4756.4,4756.3,23.446]
[1756075095941,0.3273,4756.4,4756.3,3.209]
[1756075096137,0.3273,4756.4,4756.3,23.446]
[1756075096443,0.9949,4757.0,4756.4,0.0012]
[1756075096642,0.326,4756.8,4756.3,23.4448]
[1756075096946,3.5351,4757.1,4756.3,23.86533]
[1756075097147,0.3273,4757.0,4756.6,0.0012]
[1756075097346,0.3273,4756.9,4756.6,0.0012]
[1756075097546,0.3273,4757.0,4756.6,0.0012]
[1756075097744,0.3273,4756.9,4756.3,23.86533]
[1756075097945,0.3273,4756.9,4756.8,0.0012]
[1756075098144,0.9949,4757.0,4756.3,3.209]
[1756075098345,0.6533,4756.5,4756.4,20.236]
[1756075098544,0.3273,4756.5,4756.4,20.236]
[1756075100949,1.3126,4756.5,4756.4,20.236]
[1756075101147,0.2103,4757.0,4756.9,0.002]
[1756075101348,0.2103,4757.0,4756.9,20.233]
[1756075101548,1.0009,4757.0,4756.3,3.2078]
[1756075101849,0.6533,4756.9,4756.4,20.2312]
[1756075102049,1.0779,4756.9,4756.8,0.002]
[1756075102442,1.6542,4756.9,4756.4,20.2312]
[1756075102650,1.0009,4756.8,4756.7,0.0008]
[1756075102945,0.4246,4757.1,4757.0,0.0008]
[1756075103139,1.6542,4757.1,4757.0,0.002]
[1756075103749,1.6542,4757.1,4757.0,0.0012]
[1756075104443,0.6593,4756.6,4756.5,0.0012]
[1756075104644,1.6542,4756.6,4756.5,20.2292]
[1756075104937,0.3273,4756.6,4756.5,20.23]
[1756075105949,1.6542,4756.6,4756.5,20.228]
[1756075106147,0.6593,4756.4,4756.3,3.2086]
[1756075106350,1.6542,4756.4,4756.3,3.2086]
[1756075106553,1.6542,4756.4,4756.3,23.4326]
[1756075107047,0.6689,4757.3,4756.5,0.42051]
[1756075107352,0.4246,4757.2,4756.6,0.0012]
[1756075107653,0.7597,4756.8,4756.7,0.002]
[1756075107850,1.2903,4756.8,4756.7,0.002]
[1756075108745,0.9815,4756.7,4756.3,23.4318]
[1756075108950,1.6252,4756.4,4756.3,23.4318]
[1756075109150,1.0543,4756.4,4756.3,23.4318]
[1756075109450,0.3147,4756.4,4756.3,23.4318]
[1756075109646,0.3137,4756.8,4756.7,0.4205]
[1756075109849,0.3147,4757.1,4756.3,24.48314]
[1756075110152,0.209,4756.8,4756.7,0.4205]
[1756075110348,0.8374,4756.8,4756.7,20.6405]
[1756075110752,0.5227,4756.7,4756.3,3.2078]
[1756075110947,3.2078,4757.7,4756.5,0.42052]
[1756075111249,0.5237,4757.3,4757.2,3.62826]
[1756075111455,0.5237,4757.3,4757.2,23.4258]
[1756075111653,1.6252,4757.3,4757.2,23.4269]
[1756075111955,1.2721,4757.3,4757.2,23.84736]
[1756075112348,1.6252,4757.3,4757.2,23.4269]
[1756075112551,2.21387737,4757.3,4757.2,20.218]
[1756075112851,2.21387737,4757.3,4757.2,20.2191]
[1756075113050,1.6252,4757.3,4757.2,20.2191]
[1756075113257,2.21407424,4757.3,4757.2,20.2191]
[1756075113758,0.90357424,4757.3,4757.2,20.2191]
[1756075113959,0.3147,4757.7,4757.6,0.0011]
[1756075114353,0.90363581,4757.7,4757.6,0.0011]
[1756075114857,0.90363581,4757.7,4757.6,20.2151]
[1756075115059,2.21413581,4757.7,4757.6,20.2151]
[1756075115256,2.21413581,4757.7,4757.6,20.213]
[1756075115458,1.6252,4757.3,4757.2,30.278]
[1756075115755,1.6252,4757.3,4757.2,50.491]
[1756075115956,1.6252,4757.3,4757.2,30.278]
[1756075116159,2.21387882,4757.3,4757.2,30.278]
[1756075116660,2.21387882,4757.3,4757.2,50.489]
[1756075117061,2.21387882,4757.3,4757.2,30.278]
[1756075117356,1.2721,4756.5,4756.4,3.2089]
[1756075117556,1.2721,4756.5,4756.4,23.4179]
[1756075117954,1.0543,4756.5,4756.4,23.4179]
[1756075118355,0.3147,4756.5,4756.4,23.4179]
[1756075118658,3.5215,4757.3,4756.6,0.4205]
[1756075118857,1.8999197,4757.2,4757.1,0.0011]
[1756075119062,1.5468197,4757.2,4757.1,20.2091]